[Event "Late-Titled-Tuesday-Blitz-January-23-2024"]
[Site "Chess.com"]
[Date "2024.01.23"]
[Round "2"]
[White "ATM622"]
[Black "RamyresCoelho"]
[Result "0-1"]
[WhiteElo "2482"]
[BlackElo "2260"]
[TimeControl "180+1"]
[EndTime "14:19:07 PST"]
[Termination "RamyresCoelho won by checkmate"]

1. d4 {[%clk 0:02:56.9]} 1... Nf6 {[%clk 0:02:56.5]} 2. c4 {[%clk 0:02:53.7]}
2... g6 {[%clk 0:02:56.3]} 3. g3 {[%clk 0:02:53.9]} 3... Bg7 {[%clk 0:02:55.4]}
4. Bg2 {[%clk 0:02:51.5]} 4... d6 {[%clk 0:02:56.3]} 5. Nf3 {[%clk 0:02:50.9]}
5... O-O {[%clk 0:02:57.2]} 6. O-O {[%clk 0:02:43]} 6... Nc6 {[%clk 0:02:56.2]}
7. Nc3 {[%clk 0:02:39.5]} 7... e5 {[%clk 0:02:54.8]} 8. dxe5 {[%clk 0:02:39.2]}
8... Nxe5 {[%clk 0:02:54.4]} 9. Nxe5 {[%clk 0:02:38]} 9... dxe5 {[%clk
0:02:55.3]} 10. Qxd8 {[%clk 0:02:38]} 10... Rxd8 {[%clk 0:02:54.9]} 11. Bg5
{[%clk 0:02:38.1]} 11... Be6 {[%clk 0:02:31.9]} 12. b3 {[%clk 0:02:34.5]} 12...
c6 {[%clk 0:02:29.1]} 13. Rad1 {[%clk 0:02:19.2]} 13... h6 {[%clk 0:02:27.1]}
14. Bc1 {[%clk 0:02:09.5]} 14... Bf8 {[%clk 0:02:17.3]} 15. Bb2 {[%clk 0:02:05]}
15... Be7 {[%clk 0:02:14.3]} 16. h3 {[%clk 0:01:56]} 16... Rxd1 {[%clk
0:02:13.3]} 17. Rxd1 {[%clk 0:01:55]} 17... Rd8 {[%clk 0:02:14.2]} 18. Rxd8+
{[%clk 0:01:54.7]} 18... Bxd8 {[%clk 0:02:15.1]} 19. Na4 {[%clk 0:01:49.8]}
19... Bc7 {[%clk 0:02:12.1]} 20. Nc5 {[%clk 0:01:48.9]} 20... Bc8 {[%clk
0:02:12.5]} 21. Nd3 {[%clk 0:01:48.4]} 21... Nd7 {[%clk 0:02:03.9]} 22. h4
{[%clk 0:01:48.2]} 22... h5 {[%clk 0:02:00.9]} 23. Bh3 {[%clk 0:01:47.2]} 23...
f6 {[%clk 0:02:00.7]} 24. Be6+ {[%clk 0:01:39.1]} 24... Kg7 {[%clk 0:02:00.5]}
25. c5 {[%clk 0:01:28.9]} 25... Kf8 {[%clk 0:01:38.5]} 26. f4 {[%clk 0:01:23.5]}
26... exf4 {[%clk 0:01:32]} 27. Nxf4 {[%clk 0:01:18.5]} 27... Bxf4 {[%clk
0:01:29.4]} 28. gxf4 {[%clk 0:01:18.2]} 28... Ke7 {[%clk 0:01:25.9]} 29. f5
{[%clk 0:01:18]} 29... g5 {[%clk 0:01:13.9]} 30. hxg5 {[%clk 0:01:15.9]} 30...
fxg5 {[%clk 0:01:14.8]} 31. e4 {[%clk 0:01:06.7]} 31... b6 {[%clk 0:01:05.5]}
32. b4 {[%clk 0:01:04.1]} 32... Bb7 {[%clk 0:01:00.7]} 33. Bc1 {[%clk
0:00:58.6]} 33... g4 {[%clk 0:00:51.1]} 34. Bg5+ {[%clk 0:00:57.8]} 34... Ke8
{[%clk 0:00:51.1]} 35. f6 {[%clk 0:00:57]} 35... Ne5 {[%clk 0:00:43]} 36. Bf4
{[%clk 0:00:38.2]} 36... Nf7 {[%clk 0:00:22.6]} 37. Bb8 {[%clk 0:00:34.2]} 37...
bxc5 {[%clk 0:00:21.3]} 38. bxc5 {[%clk 0:00:33.3]} 38... Ba6 {[%clk 0:00:17.8]}
39. Bf5 {[%clk 0:00:16.6]} 39... Bc4 {[%clk 0:00:12.9]} 40. e5 {[%clk
0:00:14.5]} 40... Ng5 {[%clk 0:00:10.1]} 41. Bxa7 {[%clk 0:00:12]} 41... Nf3+
{[%clk 0:00:10.1]} 42. Kf2 {[%clk 0:00:11.5]} 42... Nxe5 {[%clk 0:00:11]} 43.
Bb8 {[%clk 0:00:08.9]} 43... Nd3+ {[%clk 0:00:07.5]} 44. Ke3 {[%clk 0:00:08.3]}
44... Nxc5 {[%clk 0:00:07.6]} 45. Kd4 {[%clk 0:00:05.5]} 45... Be6 {[%clk
0:00:04.8]} 46. Bg6+ {[%clk 0:00:05.4]} 46... Bf7 {[%clk 0:00:02.7]} 47. Bxf7+
{[%clk 0:00:05.5]} 47... Kxf7 {[%clk 0:00:03.6]} 48. Kxc5 {[%clk 0:00:05.9]}
48... Kxf6 {[%clk 0:00:04.5]} 49. a4 {[%clk 0:00:02.9]} 49... h4 {[%clk
0:00:04.7]} 50. a5 {[%clk 0:00:02.8]} 50... g3 {[%clk 0:00:05]} 51. Bc7 {[%clk
0:00:01.3]} 51... Kf5 {[%clk 0:00:03.5]} 52. Bd8 {[%clk 0:00:01.4]} 52... Kg4
{[%clk 0:00:04.4]} 53. Bxh4 {[%clk 0:00:01.6]} 53... Kxh4 {[%clk 0:00:04.2]} 54.
a6 {[%clk 0:00:02.5]} 54... g2 {[%clk 0:00:04.4]} 55. a7 {[%clk 0:00:03.4]}
55... g1=Q+ {[%clk 0:00:04.7]} 56. Kd6 {[%clk 0:00:03.7]} 56... Qxa7 {[%clk
0:00:05]} 57. Kxc6 {[%clk 0:00:03.1]} 57... Qh7 {[%clk 0:00:05.9]} 58. Kd6
{[%clk 0:00:03.3]} 58... Kg5 {[%clk 0:00:06.8]} 59. Ke5 {[%clk 0:00:04.2]} 59...
Qg6 {[%clk 0:00:07.2]} 60. Kd5 {[%clk 0:00:04.2]} 60... Qf6 {[%clk 0:00:08.1]}
61. Ke4 {[%clk 0:00:04.1]} 61... Qf5+ {[%clk 0:00:08.3]} 62. Kd4 {[%clk
0:00:04.2]} 62... Qf4+ {[%clk 0:00:09.2]} 63. Kd5 {[%clk 0:00:04.5]} 63... Kf5
{[%clk 0:00:09.9]} 64. Kc6 {[%clk 0:00:04.8]} 64... Qe5 {[%clk 0:00:10]} 65. Kd7
{[%clk 0:00:05]} 65... Qe6+ {[%clk 0:00:10.2]} 66. Kc7 {[%clk 0:00:05.2]} 66...
Kf6 {[%clk 0:00:11.1]} 67. Kd8 {[%clk 0:00:05.3]} 67... Qe7+ {[%clk 0:00:11]}
68. Kc8 {[%clk 0:00:05.6]} 68... Qa7 {[%clk 0:00:11.1]} 69. Kd8 {[%clk
0:00:05.1]} 69... Ke6 {[%clk 0:00:11.4]} 70. Kc8 {[%clk 0:00:05.3]} 70... Kd6
{[%clk 0:00:11.3]} 71. Kd8 {[%clk 0:00:05.6]} 71... Qd7# {[%clk 0:00:11.6]} 0-1

[Event "Late-Titled-Tuesday-Blitz-January-23-2024"]
[Site "Chess.com"]
[Date "2024.01.23"]
[Round "2"]
[White "Sargsyan_Shant"]
[Black "Squirlolz"]
[Result "1-0"]
[WhiteElo "2923"]
[BlackElo "2582"]
[TimeControl "180+1"]
[EndTime "14:19:16 PST"]
[Termination "Sargsyan_Shant won on time"]

1. c4 {[%clk 0:03:00.3]} 1... e5 {[%clk 0:02:57.9]} 2. g3 {[%clk 0:03:00.4]}
2... d6 {[%clk 0:02:57.8]} 3. d4 {[%clk 0:02:59.4]} 3... Be7 {[%clk 0:02:56.5]}
4. Bg2 {[%clk 0:02:59.5]} 4... f5 {[%clk 0:02:56.6]} 5. Nc3 {[%clk 0:02:59.5]}
5... Nf6 {[%clk 0:02:56.8]} 6. dxe5 {[%clk 0:02:58.8]} 6... dxe5 {[%clk
0:02:57.7]} 7. Qxd8+ {[%clk 0:02:59.6]} 7... Bxd8 {[%clk 0:02:58.4]} 8. Nf3
{[%clk 0:02:57.9]} 8... e4 {[%clk 0:02:55.9]} 9. Nd4 {[%clk 0:02:58.3]} 9... c6
{[%clk 0:02:52.9]} 10. O-O {[%clk 0:02:58.5]} 10... Na6 {[%clk 0:02:51.5]} 11.
Rd1 {[%clk 0:02:58.9]} 11... O-O {[%clk 0:02:47.2]} 12. b3 {[%clk 0:02:59]}
12... Bc7 {[%clk 0:02:42]} 13. Ba3 {[%clk 0:02:58.7]} 13... Rd8 {[%clk
0:02:42.2]} 14. e3 {[%clk 0:02:58.5]} 14... Be5 {[%clk 0:02:41.4]} 15. h4 {[%clk
0:02:42]} 15... Kf7 {[%clk 0:02:35.2]} 16. Bh3 {[%clk 0:02:38.9]} 16... g6
{[%clk 0:02:33.4]} 17. Kg2 {[%clk 0:02:39.3]} 17... Nc7 {[%clk 0:02:31.8]} 18.
Nxc6 {[%clk 0:02:35.6]} 18... Bxc3 {[%clk 0:02:15.3]} 19. Nxd8+ {[%clk
0:02:35.3]} 19... Ke8 {[%clk 0:02:16.2]} 20. Rac1 {[%clk 0:02:33.6]} 20... Be5
{[%clk 0:02:14]} 21. Bd6 {[%clk 0:02:28.1]} 21... Bxd6 {[%clk 0:02:14.1]} 22.
Rxd6 {[%clk 0:02:29]} 22... Ke7 {[%clk 0:02:15]} 23. Rcd1 {[%clk 0:02:28.3]}
23... Bd7 {[%clk 0:02:15.2]} 24. Nxb7 {[%clk 0:02:27]} 24... Ne6 {[%clk
0:02:02.5]} 25. Na5 {[%clk 0:02:20.3]} 25... Rc8 {[%clk 0:02:02.5]} 26. b4
{[%clk 0:02:19.5]} 26... Ba4 {[%clk 0:02:00.5]} 27. R1d2 {[%clk 0:02:19.9]}
27... Nd7 {[%clk 0:02:00.6]} 28. c5 {[%clk 0:02:16.7]} 28... Ne5 {[%clk
0:02:00.4]} 29. a3 {[%clk 0:02:14.3]} 29... Nf3 {[%clk 0:01:57.7]} 30. Kh1
{[%clk 0:02:07.6]} 30... Nxc5 {[%clk 0:01:42.4]} 31. Bf1 {[%clk 0:01:22]} 31...
Nd3 {[%clk 0:01:19.5]} 32. R6xd3 {[%clk 0:00:35]} 32... Rc1 {[%clk 0:00:52.1]}
33. Kg2 {[%clk 0:00:28.6]} 33... Ne1+ {[%clk 0:00:46.6]} 34. Kh3 {[%clk
0:00:26.3]} 34... Bb5 {[%clk 0:00:15.9]} 35. Nb3 {[%clk 0:00:24.7]} 35... Rb1
{[%clk 0:00:09.1]} 36. Rd1 {[%clk 0:00:18.3]} 36... Bxd3 {[%clk 0:00:03.4]} 37.
Rxb1 {[%clk 0:00:18.8]} 37... Bxb1 {[%clk 0:00:01.6]} 38. Nd4 {[%clk 0:00:14.6]}
38... Bd3 {[%clk 0:00:01.9]} 39. Bg2 {[%clk 0:00:15.3]} 39... Kd6 {[%clk
0:00:01.4]} 40. g4 {[%clk 0:00:13.5]} 40... Nc2 {[%clk 0:00:02.3]} 41. Nxc2
{[%clk 0:00:09.3]} 41... Bxc2 {[%clk 0:00:03.2]} 42. gxf5 {[%clk 0:00:10.2]}
42... gxf5 {[%clk 0:00:03.7]} 43. Kg3 {[%clk 0:00:11.1]} 43... Ke5 {[%clk
0:00:03.8]} 44. Bf1 {[%clk 0:00:10.5]} 44... Bd3 {[%clk 0:00:03.4]} 45. Bh3
{[%clk 0:00:10.9]} 45... Be2 {[%clk 0:00:03.7]} 46. Bg2 {[%clk 0:00:09.6]} 46...
Bd3 {[%clk 0:00:03.8]} 47. f4+ {[%clk 0:00:10]} 47... exf3 {[%clk 0:00:03.1]}
48. Bxf3 {[%clk 0:00:10.5]} 48... h6 {[%clk 0:00:01.8]} 49. Bg2 {[%clk
0:00:10.9]} 49... Bc2 {[%clk 0:00:02.4]} 50. Bf1 {[%clk 0:00:11.4]} 50... Be4
{[%clk 0:00:02.7]} 51. Kf2 {[%clk 0:00:12]} 51... f4 {[%clk 0:00:01.9]} 52. Be2
{[%clk 0:00:12.2]} 52... Bd5 {[%clk 0:00:02.5]} 53. Bd3 {[%clk 0:00:12.6]} 53...
fxe3+ {[%clk 0:00:02.7]} 54. Kxe3 {[%clk 0:00:13.5]} 54... Be6 {[%clk
0:00:03.6]} 55. Be2 {[%clk 0:00:12.9]} 55... Bd7 {[%clk 0:00:04]} 56. Bd1 {[%clk
0:00:11.6]} 56... Be6 {[%clk 0:00:04.5]} 57. Kd3 {[%clk 0:00:11.2]} 57... Kf4
{[%clk 0:00:04.1]} 58. a4 {[%clk 0:00:09.4]} 58... Kg3 {[%clk 0:00:03.3]} 59. h5
{[%clk 0:00:10]} 59... Kf4 {[%clk 0:00:02.3]} 60. Kd4 {[%clk 0:00:09.9]} 60...
Kf5 {[%clk 0:00:01.1]} 61. Kc5 {[%clk 0:00:10]} 61... Ke5 {[%clk 0:00:01.4]} 62.
b5 {[%clk 0:00:10.4]} 62... Bd7 {[%clk 0:00:02]} 63. a5 {[%clk 0:00:10.4]} 63...
Kf6 {[%clk 0:00:01.4]} 64. Be2 {[%clk 0:00:10]} 64... Ke7 {[%clk 0:00:01.6]} 65.
Bf3 {[%clk 0:00:06.9]} 65... Kd8 {[%clk 0:00:02.1]} 66. b6 {[%clk 0:00:07.4]}
66... axb6+ {[%clk 0:00:03]} 67. Kxb6 {[%clk 0:00:08.3]} 67... Be6 {[%clk
0:00:02.2]} 68. a6 {[%clk 0:00:08.5]} 68... Kc8 {[%clk 0:00:01.2]} 69. a7 {[%clk
0:00:08.9]} 1-0

[Event "Late-Titled-Tuesday-Blitz-January-23-2024"]
[Site "Chess.com"]
[Date "2024.01.23"]
[Round "2"]
[White "ArtemDyachuk"]
[Black "ITheOnlyME"]
[Result "1/2-1/2"]
[WhiteElo "2610"]
[BlackElo "2403"]
[TimeControl "180+1"]
[EndTime "14:19:22 PST"]
[Termination "Game drawn by repetition"]

1. e4 {[%clk 0:03:00.9]} 1... c5 {[%clk 0:03:00.3]} 2. Nf3 {[%clk 0:02:59.4]}
2... g6 {[%clk 0:02:59]} 3. c3 {[%clk 0:02:57.7]} 3... d5 {[%clk 0:02:58.1]} 4.
exd5 {[%clk 0:02:57.5]} 4... Qxd5 {[%clk 0:02:59]} 5. d4 {[%clk 0:02:58.3]} 5...
Bg7 {[%clk 0:02:58.4]} 6. Be3 {[%clk 0:02:58.7]} 6... cxd4 {[%clk 0:02:58.3]} 7.
cxd4 {[%clk 0:02:59.6]} 7... Nh6 {[%clk 0:02:56.5]} 8. Nc3 {[%clk 0:02:59.4]}
8... Qa5 {[%clk 0:02:55.5]} 9. Bc4 {[%clk 0:02:50.4]} 9... O-O {[%clk
0:02:54.7]} 10. O-O {[%clk 0:02:50.1]} 10... Bg4 {[%clk 0:02:54.3]} 11. h3
{[%clk 0:02:37.5]} 11... Bxf3 {[%clk 0:02:46.8]} 12. Qxf3 {[%clk 0:02:38.4]}
12... Nc6 {[%clk 0:02:45.7]} 13. Rad1 {[%clk 0:02:35.4]} 13... Nf5 {[%clk
0:02:45]} 14. Ne2 {[%clk 0:02:15.7]} 14... Rad8 {[%clk 0:02:42.1]} 15. Qe4
{[%clk 0:02:06.3]} 15... Nd6 {[%clk 0:02:32.9]} 16. Qd3 {[%clk 0:02:05.1]} 16...
Nxc4 {[%clk 0:02:05.4]} 17. Qxc4 {[%clk 0:02:06]} 17... e6 {[%clk 0:02:06.3]}
18. Nc3 {[%clk 0:02:01.9]} 18... Qb4 {[%clk 0:02:00.1]} 19. Qxb4 {[%clk
0:01:45]} 19... Nxb4 {[%clk 0:02:01]} 20. d5 {[%clk 0:01:45.9]} 20... Bxc3
{[%clk 0:02:00.7]} 21. dxe6 {[%clk 0:01:21]} 21... Rxd1 {[%clk 0:01:55.3]} 22.
Rxd1 {[%clk 0:01:20.2]} 22... Bf6 {[%clk 0:01:46.3]} 23. Bc5 {[%clk 0:01:18.4]}
23... Nxa2 {[%clk 0:01:16]} 24. Bxf8 {[%clk 0:00:43.7]} 24... Kxf8 {[%clk
0:01:16.9]} 25. Rd7 {[%clk 0:00:43.8]} 25... fxe6 {[%clk 0:01:13.9]} 26. Rxb7
{[%clk 0:00:42.8]} 26... a5 {[%clk 0:01:10.6]} 27. Rb5 {[%clk 0:00:37.5]} 27...
a4 {[%clk 0:01:02.4]} 28. Ra5 {[%clk 0:00:32.8]} 28... Bxb2 {[%clk 0:00:55.4]}
29. Rxa4 {[%clk 0:00:32.8]} 29... Nc1 {[%clk 0:00:52.9]} 30. Kf1 {[%clk
0:00:29.3]} 30... Nd3 {[%clk 0:00:47.2]} 31. Ra7 {[%clk 0:00:26.9]} 31... Bg7
{[%clk 0:00:46.8]} 32. Ke2 {[%clk 0:00:24.3]} 32... Ne5 {[%clk 0:00:39.7]} 33.
Rc7 {[%clk 0:00:22.1]} 33... Nf7 {[%clk 0:00:35.8]} 34. f4 {[%clk 0:00:19.7]}
34... e5 {[%clk 0:00:24.4]} 35. Kf3 {[%clk 0:00:19.4]} 35... exf4 {[%clk
0:00:24.3]} 36. Rc8+ {[%clk 0:00:19.8]} 36... Ke7 {[%clk 0:00:22.7]} 37. Kxf4
{[%clk 0:00:20.7]} 37... Be5+ {[%clk 0:00:18.7]} 38. Kf3 {[%clk 0:00:20.9]}
38... Kf6 {[%clk 0:00:18.5]} 39. Rc6+ {[%clk 0:00:19.2]} 39... Nd6 {[%clk
0:00:18.3]} 40. Ra6 {[%clk 0:00:20.1]} 40... h5 {[%clk 0:00:18.1]} 41. Ra5
{[%clk 0:00:18.3]} 41... h4 {[%clk 0:00:13.5]} 42. Kg4 {[%clk 0:00:16.7]} 42...
Bg3 {[%clk 0:00:13.8]} 43. Ra6 {[%clk 0:00:15.9]} 43... Ke5 {[%clk 0:00:13.4]}
44. Kg5 {[%clk 0:00:14.9]} 44... Nf5 {[%clk 0:00:12.6]} 45. Kxg6 {[%clk
0:00:09.4]} 45... Ne3 {[%clk 0:00:13.1]} 46. Ra2 {[%clk 0:00:09.8]} 46... Kf4
{[%clk 0:00:12.1]} 47. Kh5 {[%clk 0:00:09.7]} 47... Be1 {[%clk 0:00:11.3]} 48.
Re2 {[%clk 0:00:06.4]} 48... Bg3 {[%clk 0:00:11.3]} 49. Rd2 {[%clk 0:00:06.5]}
49... Nf1 {[%clk 0:00:11.4]} 50. Rd4+ {[%clk 0:00:05.8]} 50... Ke3 {[%clk
0:00:11.2]} 51. Rxh4 {[%clk 0:00:05.5]} 51... Bxh4 {[%clk 0:00:10.8]} 52. Kxh4
{[%clk 0:00:06.4]} 52... Kf4 {[%clk 0:00:11.7]} 53. g4 {[%clk 0:00:05.9]} 53...
Ng3 {[%clk 0:00:11.1]} 54. g5 {[%clk 0:00:06.3]} 54... Nf5+ {[%clk 0:00:09.4]}
55. Kh5 {[%clk 0:00:06.5]} 55... Ke5 {[%clk 0:00:08.6]} 56. Kg6 {[%clk
0:00:06.3]} 56... Nh4+ {[%clk 0:00:07.5]} 57. Kh5 {[%clk 0:00:04.4]} 57... Nf5
{[%clk 0:00:06.8]} 58. h4 {[%clk 0:00:02.9]} 58... Ke6 {[%clk 0:00:06.9]} 59.
Kg4 {[%clk 0:00:02.7]} 59... Ne7 {[%clk 0:00:07]} 60. Kh5 {[%clk 0:00:02.8]}
60... Kf7 {[%clk 0:00:07.9]} 61. Kh6 {[%clk 0:00:03.2]} 61... Kg8 {[%clk
0:00:07.7]} 62. g6 {[%clk 0:00:03.5]} 62... Nf5+ {[%clk 0:00:07.5]} 63. Kg5
{[%clk 0:00:03.7]} 63... Nxh4 {[%clk 0:00:07.5]} 64. Kxh4 {[%clk 0:00:04.6]}
64... Kg7 {[%clk 0:00:08.4]} 65. Kh5 {[%clk 0:00:04.9]} 65... Kg8 {[%clk
0:00:09.3]} 66. Kg5 {[%clk 0:00:05.4]} 66... Kg7 {[%clk 0:00:09.8]} 67. Kf5
{[%clk 0:00:05.9]} 67... Kg8 {[%clk 0:00:10.3]} 68. Kf6 {[%clk 0:00:06.5]} 68...
Kf8 {[%clk 0:00:10.8]} 69. Ke6 {[%clk 0:00:07.4]} 69... Kg7 {[%clk 0:00:10.9]}
70. Kf5 {[%clk 0:00:08.3]} 70... Kg8 {[%clk 0:00:11.5]} 71. Kf6 {[%clk
0:00:08.8]} 71... Kf8 {[%clk 0:00:12.1]} 72. Kg5 {[%clk 0:00:05.5]} 72... Kg7
{[%clk 0:00:12.3]} 73. Kh5 {[%clk 0:00:06.1]} 73... Kg8 {[%clk 0:00:12.5]} 74.
Kh6 {[%clk 0:00:07]} 74... Kh8 {[%clk 0:00:12.9]} 75. Kg5 {[%clk 0:00:07.4]}
75... Kg7 {[%clk 0:00:13.5]} 1/2-1/2

[Event "Late-Titled-Tuesday-Blitz-January-23-2024"]
[Site "Chess.com"]
[Date "2024.01.23"]
[Round "2"]
[White "Teidi96"]
[Black "bescmelasti"]
[Result "1-0"]
[WhiteElo "2421"]
[BlackElo "2689"]
[TimeControl "180+1"]
[EndTime "14:19:48 PST"]
[Termination "Teidi96 won by resignation"]

1. e4 {[%clk 0:03:00.9]} 1... e6 {[%clk 0:02:59]} 2. d4 {[%clk 0:03:00.6]} 2...
d5 {[%clk 0:02:59.9]} 3. Nd2 {[%clk 0:03:01]} 3... c5 {[%clk 0:02:59.8]} 4. exd5
{[%clk 0:03:01.1]} 4... Qxd5 {[%clk 0:03:00.7]} 5. Ngf3 {[%clk 0:03:01.7]} 5...
cxd4 {[%clk 0:03:00.2]} 6. Bc4 {[%clk 0:03:02.2]} 6... Qd6 {[%clk 0:03:00.9]} 7.
Qe2 {[%clk 0:03:02.7]} 7... Nf6 {[%clk 0:03:01.5]} 8. Nb3 {[%clk 0:03:03.3]}
8... Nc6 {[%clk 0:02:53.9]} 9. Bg5 {[%clk 0:03:03.3]} 9... Qb4+ {[%clk
0:02:51.8]} 10. Bd2 {[%clk 0:02:57.1]} 10... Qb6 {[%clk 0:02:51.1]} 11. O-O
{[%clk 0:02:46.9]} 11... Be7 {[%clk 0:02:51]} 12. Rfd1 {[%clk 0:02:41.5]} 12...
O-O {[%clk 0:02:50.6]} 13. Bf4 {[%clk 0:02:35.1]} 13... Rd8 {[%clk 0:02:44.4]}
14. Bb5 {[%clk 0:02:24.5]} 14... Bd7 {[%clk 0:02:37.6]} 15. Bxc6 {[%clk
0:02:17.4]} 15... Bxc6 {[%clk 0:02:37.6]} 16. Nfxd4 {[%clk 0:02:12.6]} 16... Be4
{[%clk 0:02:35]} 17. c3 {[%clk 0:01:54.6]} 17... a5 {[%clk 0:02:27.9]} 18. Qb5
{[%clk 0:01:46.4]} 18... Qxb5 {[%clk 0:01:51.5]} 19. Nxb5 {[%clk 0:01:47.3]}
19... a4 {[%clk 0:01:52.2]} 20. Nd2 {[%clk 0:01:34.2]} 20... Bc2 {[%clk
0:01:46.8]} 21. Rdc1 {[%clk 0:01:31]} 21... Bd3 {[%clk 0:01:46.6]} 22. Nd4
{[%clk 0:01:23.5]} 22... Nd5 {[%clk 0:01:37.9]} 23. Bg3 {[%clk 0:01:16.2]} 23...
Rac8 {[%clk 0:01:31.2]} 24. a3 {[%clk 0:01:13.6]} 24... Bg5 {[%clk 0:01:14.1]}
25. Rd1 {[%clk 0:01:07.2]} 25... Nb6 {[%clk 0:01:13]} 26. N2f3 {[%clk
0:01:06.7]} 26... Bf6 {[%clk 0:00:28.4]} 27. Rxd3 {[%clk 0:01:03.7]} 27... Nc4
{[%clk 0:00:29.3]} 28. Rdd1 {[%clk 0:00:54.1]} 28... Nxb2 {[%clk 0:00:26.6]} 29.
Rdb1 {[%clk 0:00:54.2]} 29... Nd3 {[%clk 0:00:23.9]} 30. Rxb7 {[%clk 0:00:51.6]}
30... Rxc3 {[%clk 0:00:24.3]} 31. Nb5 {[%clk 0:00:39.6]} 31... Rb3 {[%clk
0:00:19]} 32. Nd6 {[%clk 0:00:35.1]} 32... Rxd6 {[%clk 0:00:11.4]} 33. Rxb3
{[%clk 0:00:33.8]} 33... axb3 {[%clk 0:00:12.1]} 34. Bxd6 {[%clk 0:00:32.2]}
34... Bxa1 {[%clk 0:00:12.2]} 35. Nd2 {[%clk 0:00:29.5]} 35... b2 {[%clk
0:00:12.2]} 36. a4 {[%clk 0:00:23.8]} 36... Nc1 {[%clk 0:00:12.5]} 37. Nb1
{[%clk 0:00:15.1]} 37... Nb3 {[%clk 0:00:12.5]} 38. Bb4 {[%clk 0:00:12.1]} 38...
Nd4 {[%clk 0:00:10.6]} 39. a5 {[%clk 0:00:11.1]} 39... Nc6 {[%clk 0:00:11]} 40.
a6 {[%clk 0:00:07.5]} 40... f5 {[%clk 0:00:05.4]} 41. Bc5 {[%clk 0:00:06.8]}
41... Kf7 {[%clk 0:00:03.4]} 42. a7 {[%clk 0:00:06.6]} 42... Nxa7 {[%clk
0:00:03.7]} 43. Bxa7 {[%clk 0:00:07.5]} 43... e5 {[%clk 0:00:04.2]} 44. Kf1
{[%clk 0:00:07.5]} 44... Ke6 {[%clk 0:00:05.1]} 45. Ke2 {[%clk 0:00:07.8]} 45...
Kd5 {[%clk 0:00:06]} 46. Kd2 {[%clk 0:00:08.3]} 46... Kc4 {[%clk 0:00:06.1]} 47.
Kc2 {[%clk 0:00:08.5]} 47... e4 {[%clk 0:00:05.6]} 48. Bb8 {[%clk 0:00:07.3]}
48... g5 {[%clk 0:00:05.4]} 49. Be5 {[%clk 0:00:06.9]} 49... Kd5 {[%clk
0:00:03.5]} 50. Bxb2 {[%clk 0:00:06.7]} 50... Bxb2 {[%clk 0:00:03.3]} 51. Kxb2
{[%clk 0:00:07.6]} 51... f4 {[%clk 0:00:03.6]} 52. Kc3 {[%clk 0:00:07.7]} 52...
e3 {[%clk 0:00:04]} 53. fxe3 {[%clk 0:00:07.6]} 53... Ke4 {[%clk 0:00:04.4]} 54.
exf4 {[%clk 0:00:07.4]} 54... gxf4 {[%clk 0:00:05.3]} 55. Kd2 {[%clk 0:00:06.7]}
55... f3 {[%clk 0:00:05]} 56. g3 {[%clk 0:00:06.4]} 56... Kf5 {[%clk 0:00:04.4]}
57. Ke3 {[%clk 0:00:06]} 57... Kg4 {[%clk 0:00:05.3]} 58. Kf2 {[%clk 0:00:05.7]}
58... Kh3 {[%clk 0:00:05.4]} 59. Kxf3 {[%clk 0:00:05.6]} 59... Kxh2 {[%clk
0:00:05.6]} 60. Nd2 {[%clk 0:00:02.4]} 60... h5 {[%clk 0:00:05.9]} 61. Ne4
{[%clk 0:00:02.6]} 61... Kh3 {[%clk 0:00:06]} 62. Ng5+ {[%clk 0:00:02.7]} 62...
Kh2 {[%clk 0:00:06.4]} 63. Ne4 {[%clk 0:00:02.8]} 63... Kh3 {[%clk 0:00:07]} 64.
Nf2+ {[%clk 0:00:03.2]} 64... Kh2 {[%clk 0:00:07.2]} 65. Kf4 {[%clk 0:00:03.6]}
65... Kg2 {[%clk 0:00:05.5]} 66. Ne4 {[%clk 0:00:03.8]} 66... Kh3 {[%clk
0:00:05.9]} 67. Ng5+ {[%clk 0:00:04.1]} 67... Kg2 {[%clk 0:00:05.8]} 68. Nf3
{[%clk 0:00:04.4]} 68... Kh3 {[%clk 0:00:05.1]} 69. Nh4 {[%clk 0:00:04.6]} 69...
Kh2 {[%clk 0:00:04.8]} 70. Kf3 {[%clk 0:00:05]} 70... Kh3 {[%clk 0:00:05.2]} 71.
Kf2 {[%clk 0:00:05.1]} 71... Kh2 {[%clk 0:00:05.5]} 72. Nf3+ {[%clk 0:00:04.5]}
72... Kh3 {[%clk 0:00:05.9]} 73. Ng5+ {[%clk 0:00:04.3]} 73... Kh2 {[%clk
0:00:06.4]} 74. Nf3+ {[%clk 0:00:04.3]} 74... Kh3 {[%clk 0:00:06.3]} 75. Nh4
{[%clk 0:00:04.3]} 75... Kh2 {[%clk 0:00:02.9]} 76. Ng6 {[%clk 0:00:04.8]} 76...
Kh3 {[%clk 0:00:01.3]} 77. Nf4+ {[%clk 0:00:04.8]} 77... Kg4 {[%clk 0:00:01.1]}
78. Ng2 {[%clk 0:00:03.5]} 78... Kh3 {[%clk 0:00:01.6]} 79. Kf3 {[%clk 0:00:04]}
79... Kh2 {[%clk 0:00:01.6]} 80. Ne3 {[%clk 0:00:02.4]} 80... Kh3 {[%clk
0:00:02]} 81. Nf5 {[%clk 0:00:02.2]} 81... h4 {[%clk 0:00:02.3]} 82. g4 {[%clk
0:00:02.3]} 82... Kh2 {[%clk 0:00:02.2]} 83. Nxh4 {[%clk 0:00:02.5]} 83... Kh3
{[%clk 0:00:02.2]} 84. g5 {[%clk 0:00:03.2]} 84... Kxh4 {[%clk 0:00:03.1]} 85.
g6 {[%clk 0:00:03.7]} 1-0